bitfinex/quotes_ETHUSD_20240822
["timestamp","ask_amount","ask_price","bid_price","bid_amount"]
[1724306349161,2.409,2623.0,2622.9,20.30038445]
[1724306349368,2.409,2623.0,2622.9,21.10083005]
[1724306350713,2.409,2623.0,2622.9,20.30038445]
[1724306351495,2.409,2623.0,2622.9,20.30031443]
[1724306351728,2.409,2623.0,2622.9,21.50057031]
[1724306352331,2.409,2623.0,2622.9,20.30034954]
[1724306352631,2.409,2623.0,2622.9,21.50057031]
[1724306352828,2.409,2623.0,2622.9,20.73731909]
[1724306353028,2.409,2623.0,2622.9,21.50056958]
[1724306354851,2.409,2623.0,2622.9,20.26028753]
[1724306355147,2.409,2623.0,2622.9,21.50056844]
[1724306355356,2.409,2623.0,2622.9,20.30034767]
[1724306355649,2.409,2623.0,2622.9,21.50056844]
[1724306356801,2.409,2623.0,2622.9,21.50059181]
[1724306358252,2.409,2623.0,2622.9,20.2603109]
[1724306358552,2.409,2623.0,2622.9,21.50058903]
[1724306361148,2.409,2623.0,2622.9,20.30036826]
[1724306361548,2.409,2623.0,2622.9,19.0601158]
[1724306361710,2.409,2623.0,2622.9,25.31321252]
[1724306361905,2.409,2623.0,2622.9,27.96393716]
[1724306364551,2.409,2623.0,2622.9,26.76371639]
[1724306364751,2.409,2623.0,2622.9,26.72463151]
[1724306364911,2.409,2623.0,2622.9,27.9648879]
[1724306365112,2.409,2623.0,2622.9,26.76366683]
[1724306369252,2.409,2623.0,2622.9,26.76349571]
[1724306369760,2.409,2623.0,2622.9,26.76349606]
[1724306371562,2.409,2623.0,2622.9,25.52323812]
[1724306371763,2.409,2623.0,2622.9,24.11275496]
[1724306372217,2.409,2623.0,2622.9,26.7634796]
[1724306373041,2.409,2623.0,2622.9,27.60122307]
[1724306373221,2.409,2623.0,2622.9,28.36440845]
[1724306374861,2.409,2623.0,2622.9,27.12420712]
[1724306375156,2.409,2623.0,2622.9,28.36439911]
[1724306376228,2.409,2623.0,2622.9,29.06426623]
[1724306377465,2.409,2623.0,2622.9,27.46329723]
[1724306378060,2.409,2623.0,2622.9,28.66458342]
[1724306379360,2.409,2623.0,2622.9,29.06426623]
[1724306379571,2.409,2623.0,2622.9,27.46333009]
[1724306379866,2.409,2623.0,2622.9,29.06429909]
[1724306380173,2.409,2623.0,2622.9,27.46333009]
[1724306380333,2.409,2623.0,2622.9,29.06429909]
[1724306381043,2.409,2623.0,2622.9,24.85202437]
[1724306381237,2.409,2623.0,2622.9,20.96107488]
[1724306381581,2.409,2623.0,2622.9,22.20131652]
[1724306382587,2.409,2623.0,2622.9,21.00005224]
[1724306382732,2.409,2623.0,2622.9,22.60102124]
[1724306382931,2.409,2623.0,2622.9,23.65077688]
[1724306383551,2.409,2623.0,2622.9,25.25174588]
[1724306383883,2.409,2623.0,2622.9,23.65077688]
[1724306384365,2.409,2623.0,2622.9,25.25174588]
[1724306384569,2.409,2623.0,2622.9,22.60102124]
[1724306384937,2.409,2623.0,2622.9,21.00005224]
[1724306385885,2.409,2623.0,2622.9,21.0001647]
[1724306387964,2.409,2623.0,2622.9,19.75992306]
[1724306388161,2.409,2623.0,2622.9,21.83790449]
[1724306388375,2.409,2623.0,2622.9,22.60112438]
[1724306388983,2.409,2623.0,2622.9,23.53127121]
[1724306389606,2.409,2623.0,2622.9,26.18199585]
[1724306390102,2.409,2623.0,2622.9,29.99456585]
[1724306390303,2.409,2623.0,2622.9,30.94593424]
[1724306390822,2.409,2623.0,2622.9,27.13336424]
[1724306391028,2.409,2623.0,2622.9,24.08216414]
[1724306391322,2.409,2623.0,2622.9,26.73288878]
[1724306392362,2.409,2623.0,2622.9,24.87388878]
[1724306392596,2.409,2623.0,2622.9,21.93030221]
[1724306392807,2.409,2623.0,2622.9,23.53216414]
[1724306393303,2.409,2623.0,2622.9,21.93030221]
[1724306393663,2.409,2623.0,2622.9,23.53216414]
[1724306394597,2.409,2623.0,2622.9,26.18288878]
[1724306394771,2.409,2623.0,2622.9,23.53216414]
[1724306395380,2.409,2623.0,2622.9,20.21895108]
[1724306395587,2.409,2623.0,2622.9,23.53213009]
[1724306395787,2.409,2623.0,2622.9,23.53214884]
[1724306395975,2.409,2623.0,2622.9,26.18287348]
[1724306396170,2.409,2623.0,2622.9,23.53214884]
[1724306396576,2.409,2623.0,2622.9,26.18287348]
[1724306396819,2.409,2623.0,2622.9,23.53214884]
[1724306397888,2.409,2623.0,2622.9,21.36175094]
[1724306398180,2.409,2623.0,2622.9,23.53216287]
[1724306399312,2.409,2623.0,2622.9,23.13179826]
[1724306400423,2.409,2623.0,2622.9,23.13193415]
[1724306401512,2.409,2623.0,2622.9,23.53229876]
[1724306401711,2.409,2623.0,2622.9,21.93043683]
[1724306401904,2.409,2623.0,2622.9,24.58116147]
[1724306402495,2.409,2623.0,2622.9,25.78267512]
[1724306402873,2.409,2623.0,2622.9,23.13195048]
[1724306403585,2.409,2623.0,2622.9,20.96153855]
[1724306403786,2.409,2623.0,2622.9,22.55957686]
[1724306404026,2.409,2623.0,2622.9,23.13200849]
[1724306405323,2.409,2623.0,2622.9,21.93049484]
[1724306405525,2.409,2623.0,2622.9,23.1320536]
[1724306406303,2.409,2623.0,2622.9,17.3104836]
[1724306406613,2.68977201,2623.0,2622.9,11.1209359]
[1724306406818,2.68977201,2623.0,2622.9,9.71370814]
[1724306406995,2.68977201,2623.0,2622.9,10.19093138]
[1724306407194,2.68977201,2623.0,2622.9,10.54875794]
[1724306407394,2.68977201,2623.0,2622.9,12.53703447]
[1724306407703,2.68977201,2623.0,2622.9,10.54875794]
[1724306408105,2.68977201,2623.0,2622.9,9.22343198]
[1724306408310,2.68977201,2623.0,2622.9,10.54889908]
[1724306409090,2.68977201,2623.0,2622.9,9.22343198]
[1724306410104,2.68977201,2623.0,2622.9,5.41086198]
[1724306410514,2.68977201,2623.0,2622.9,5.05303542]
[1724306410707,2.68977201,2623.0,2622.9,5.41086198]
[1724306411021,2.68977201,2623.0,2622.9,1.24046542]
[1724306412731,2.68977201,2623.0,2622.9,1.24049918]
[1724306412935,2.68977201,2623.0,2622.9,0.7633971]
[1724306413236,2.68977201,2623.0,2622.9,1.24051855]
[1724306413447,2.68977201,2623.0,2622.9,0.47712252]
[1724306413599,2.68977201,2623.0,2622.8,7.62524]
[1724306413797,2.6551772,2622.9,2622.8,3.81261]
[1724306413997,2.3862,2622.9,2622.8,0.4771211]
[1724306414260,2.3862,2622.8,2622.6,0.47720078]
[1724306414436,2.75572,2622.8,2622.2,1.98861652]
[1724306414633,2.2502,2622.6,2622.5,3.81315]
[1724306415614,2.2502,2622.6,2622.3,3.81332]
[1724306415810,2.2502,2622.6,2622.3,7.62667]
[1724306416016,2.2502,2622.6,2622.3,3.81332]
[1724306416214,2.54739782,2622.6,2622.3,3.81332]
[1724306416424,2.54739782,2622.6,2622.4,3.81328]
[1724306416943,2.54739782,2622.6,2622.5,3.81315]
[1724306417147,2.54739782,2622.6,2622.3,3.81332]
[1724306418041,2.444,2622.4,2622.2,3.81357]
[1724306418423,2.444,2622.4,2622.2,3.81358]
[1724306418628,2.444,2622.4,2622.2,3.81356]
[1724306418844,2.50337282,2622.3,2622.2,3.81356]
[1724306420452,2.50337282,2622.3,2622.2,7.62715]
[1724306422185,2.90217762,2622.3,2622.2,7.62715]
[1724306425314,2.90217762,2622.3,2622.2,11.44074]
[1724306425551,2.90217762,2622.3,2622.2,14.44074]
[1724306429158,2.90217762,2622.3,2622.2,10.62715]
[1724306429488,2.90217762,2622.3,2622.2,11.93615]
[1724306430168,2.90217762,2622.3,2622.2,10.62715]
[1724306430369,2.90217762,2622.3,2622.2,6.81356]
[1724306430572,2.90217762,2622.3,2622.2,3.81356]
[1724306431486,2.90217762,2622.3,2622.2,5.12256]
[1724306432941,2.90217762,2622.3,2622.2,3.81356]
[1724306435610,2.83926462,2622.3,2622.2,3.81356]
[1724306435773,2.89267057,2622.3,2622.2,3.81356]
[1724306436867,2.89267057,2622.3,2622.2,7.62715]
[1724306437389,2.89267057,2622.3,2622.2,8.93615]
[1724306440623,2.89267057,2622.3,2622.2,3.81356]
[1724306441627,0.74147781,2622.3,2622.1,3.81372]
[1724306441835,0.74147781,2622.3,2622.0,3.81376]
[1724306441836,2.4056,2622.2,2622.0,3.81376]
[1724306442327,2.44980655,2622.1,2622.0,3.81376]
[1724306442471,2.44980655,2622.1,2622.0,8.93664]
[1724306443030,2.3965,2622.1,2622.0,8.93664]
[1724306444511,2.3965,2622.1,2622.0,11.93664]
[1724306445041,2.3965,2622.1,2622.0,15.75052]
[1724306445251,2.6919048,2622.3,2622.2,7.62718]
[1724306445463,2.6919048,2622.3,2622.2,15.74977]
[1724306445755,2.6919048,2622.3,2622.2,11.93618]
[1724306447104,2.6919048,2622.3,2622.2,15.74977]
[1724306448156,2.6919048,2622.3,2622.2,17.07545665]
[1724306448330,2.6919048,2622.3,2622.2,15.74977]
[1724306450210,2.6919048,2622.3,2622.2,17.07548233]
[1724306450666,2.6919048,2622.3,2622.2,15.74977]
[1724306451517,2.6919048,2622.3,2622.2,11.93618]
[1724306452445,2.74529081,2622.3,2622.2,13.26192868]
[1724306452817,2.74529081,2622.3,2622.2,11.93618]
[1724306453258,2.74529081,2622.3,2622.2,13.26194003]
[1724306453751,2.74529081,2622.3,2622.2,11.93618]
[1724306454341,2.74529081,2622.3,2622.2,13.26196402]
[1724306455116,2.74529081,2622.3,2622.2,19.06417821]
[1724306455553,2.74529081,2622.3,2622.2,19.064132]
[1724306455922,2.74529081,2622.3,2622.2,19.86518369]
[1724306456123,2.6919048,2622.3,2622.2,19.86518369]
[1724306456541,2.74467589,2622.3,2622.2,20.56518369]
[1724306458723,2.74467589,2622.3,2622.2,19.764132]
[1724306459145,2.74467589,2622.3,2622.2,20.96569076]
[1724306459350,2.74467589,2622.3,2622.2,23.61696366]
[1724306459725,2.74467589,2622.3,2622.2,19.764132]
[1724306459928,2.74467589,2622.3,2622.2,23.61699515]
[1724306460163,2.74467589,2622.3,2622.2,23.61672327]
[1724306460366,2.74467589,2622.3,2622.2,20.96541888]
[1724306460527,2.74467589,2622.3,2622.2,23.61672327]
[1724306461366,2.6919048,2622.3,2622.2,23.61672327]
[1724306462270,2.6919048,2622.3,2622.2,19.76386012]
[1724306462448,2.6919048,2622.3,2622.2,20.96541888]
[1724306462643,2.74467589,2622.3,2622.2,20.96541888]
[1724306463265,2.74467589,2622.3,2622.2,23.61671391]
[1724306463546,2.74467589,2622.3,2622.2,23.61671864]
[1724306464054,2.74467589,2622.3,2622.2,16.05055893]
[1724306464256,2.74467589,2622.3,2622.2,15.25027485]
[1724306465382,2.74467589,2622.3,2622.2,3.81359]
[1724306465553,2.70730649,2622.3,2622.2,3.81359]
[1724306465756,2.70730649,2622.3,2622.1,3.81364]
[1724306465988,2.3834,2622.2,2622.1,3.81364]
[1724306466477,2.43625587,2622.2,2622.1,3.81364]
[1724306466664,2.43625587,2622.2,2622.1,6.81364]
[1724306469221,2.43625587,2622.2,2622.1,10.62737]
[1724306469343,2.43625587,2622.2,2622.1,11.93637]
[1724306469544,2.43625587,2622.2,2622.1,13.26219729]
[1724306469800,2.43625587,2622.2,2622.1,11.93637]
[1724306473344,2.43625587,2622.2,2622.1,11.39094476]
[1724306473543,2.43625587,2622.2,2622.1,10.62737]
[1724306474788,2.43625587,2622.2,2622.1,11.1046195]
[1724306475000,2.43625587,2622.2,2622.1,7.2908895]
[1724306475572,2.716025,2622.2,2622.1,0.4772495]
[1724306475785,2.716025,2622.2,2622.1,0.47728212]
[1724306476007,2.716025,2622.2,2622.1,4.29101212]
[1724306476305,2.43625587,2622.2,2622.1,8.10474212]
[1724306477950,2.43625587,2622.2,2622.1,7.62746]
[1724306478163,2.43625587,2622.2,2622.1,8.10469404]
[1724306481285,2.43625587,2622.2,2622.1,7.62746]
[1724306481511,2.43625587,2622.2,2622.1,8.10469848]
[1724306483269,2.716025,2622.2,2622.1,4.29096848]
[1724306484071,2.36275317,2622.2,2622.1,4.29096848]
[1724306486869,2.36275317,2622.2,2622.1,3.81373]
[1724306487681,2.36275317,2622.2,2622.1,4.29100166]
[1724306487876,2.36275317,2622.2,2622.1,3.81373]
[1724306488080,2.36275317,2622.2,2622.1,4.29100268]
[1724306490778,2.36275317,2622.2,2622.1,8.10473268]
[1724306491483,2.36275317,2622.2,2622.1,9.41373268]
[1724306492086,2.36275317,2622.2,2622.1,13.22746268]
[1724306492286,2.36275317,2622.2,2622.1,16.22746268]
[1724306492503,2.3098973,2622.2,2622.1,17.5532329]
[1724306492698,0.3614354,2622.3,2622.2,11.44077]
[1724306492899,0.3614354,2622.3,2622.2,18.2324432]
[1724306493217,0.3614354,2622.3,2622.2,23.22831728]
[1724306494601,0.3614354,2622.3,2622.2,22.7510446]
[1724306494789,0.3614354,2622.3,2622.2,22.04589489]
[1724306494993,0.3614354,2622.3,2622.2,18.23230489]
[1724306495872,0.3614354,2622.3,2622.2,16.24367459]
[1724306496212,0.3614354,2622.3,2622.2,18.23222732]
[1724306496997,0.3614354,2622.3,2622.2,19.03237488]
[1724306497791,0.3614354,2622.3,2622.2,17.75495643]
[1724306498016,0.3614354,2622.3,2622.2,18.23209318]
[1724306498873,2.8539354,2622.3,2622.2,18.23209318]
[1724306501715,2.8539354,2622.3,2622.2,19.03220986]
[1724306501918,2.8539354,2622.3,2622.2,18.23192578]
[1724306504314,2.8539354,2622.3,2622.2,12.42992436]
[1724306504531,2.8539354,2622.3,2622.2,11.10435489]
[1724306506053,2.8539354,2622.3,2622.2,12.43006097]
[1724306506420,2.8539354,2622.3,2622.2,11.10435489]
[1724306509659,2.8539354,2622.3,2622.2,14.91794489]
[1724306509840,2.8539354,2622.3,2622.2,16.24367155]
[1724306511129,2.8539354,2622.3,2622.2,14.44077]
[1724306511450,2.8539354,2622.3,2622.2,14.91794047]
[1724306511654,2.8539354,2622.3,2622.2,16.24367432]
[1724306511989,2.90317596,2622.3,2622.2,14.91794047]
[1724306512260,3.19349356,2622.3,2622.2,11.10435047]
[1724306512636,3.19349356,2622.3,2622.2,7.29076047]
[1724306513145,3.19349356,2622.3,2622.2,4.29076047]
[1724306513355,3.19349356,2622.3,2622.2,3.81359]
[1724306513550,3.19349356,2622.3,2622.2,4.29076047]
[1724306514611,3.19349356,2622.3,2622.2,3.81359]
[1724306514949,3.19349356,2622.3,2622.2,4.29082589]
[1724306516381,3.19349356,2622.3,2622.2,3.81359]
[1724306517243,2.4449,2622.2,2622.1,7.62737]
[1724306517554,2.4449,2622.2,2622.0,3.81387]
[1724306517555,2.81368965,2622.2,2622.0,3.81387]
[1724306518579,2.81368965,2622.2,2621.7,6.81423]
[1724306518802,2.81368965,2622.2,2621.8,3.81409]
[1724306518951,2.3332,2622.0,2621.8,3.81409]
[1724306519371,0.04937062,2621.9,2621.8,3.81409]
[1724306519600,2.38257062,2621.9,2621.8,6.81409]
[1724306521696,2.38257062,2621.9,2621.8,10.62826]
[1724306522673,2.3332,2621.9,2621.8,10.62826]
[1724306522874,2.38231159,2621.9,2621.8,10.62826]
[1724306524684,2.3332,2621.9,2621.8,10.62826]
[1724306524873,2.38229603,2621.9,2621.8,10.62826]
[1724306525481,2.3332,2621.9,2621.8,10.62826]
[1724306525804,2.38229603,2621.9,2621.8,10.62826]
[1724306527677,2.3332,2621.9,2621.8,10.62826]
[1724306528171,2.38229603,2621.9,2621.8,10.62826]
[1724306529520,2.38229603,2621.9,2621.8,14.44243]
[1724306533524,2.38229603,2621.9,2621.8,10.62826]
[1724306536324,2.38229603,2621.9,2621.8,14.44243]
[1724306536527,2.38229603,2621.9,2621.8,14.80035029]
[1724306538320,2.38229603,2621.9,2621.8,16.12619207]
[1724306538659,2.3332,2621.9,2621.8,14.80035029]
[1724306539011,2.3332,2621.9,2621.8,15.18235029]
[1724306539346,2.3332,2621.9,2621.8,19.16452029]
[1724306539557,2.3317,2622.7,2622.6,3.81292]
[1724306540150,2.38086372,2622.7,2622.6,3.81292]
[1724306540350,2.61895009,2622.7,2622.6,3.81292]
[1724306542329,2.38086372,2622.7,2622.6,3.81292]
[1724306544340,2.38086372,2622.7,2622.6,7.62592]
[1724306545026,2.38086372,2622.7,2622.6,10.62592]
[1724306545230,2.38086372,2622.7,2622.6,14.43892]
[1724306545443,2.38086372,2622.7,2622.6,14.79675193]
[1724306545877,2.3317,2622.7,2622.6,14.79675193]
[1724306546031,2.3317,2622.7,2622.6,14.43892]
[1724306546228,2.3317,2622.7,2622.6,14.79673444]
[1724306546975,2.38129994,2622.7,2622.6,14.79673444]
[1724306547271,2.3317,2622.7,2622.6,16.12218721]
[1724306547861,2.3317,2622.7,2622.6,16.1221908]
[1724306549149,2.3317,2622.7,2622.6,15.76437636]
[1724306549350,2.3317,2622.7,2622.6,16.12217986]
[1724306549600,2.3317,2622.7,2622.6,14.7967235]
[1724306550949,2.4954,2623.5,2623.3,3.81187]
[1724306551151,2.4954,2623.5,2623.4,3.81184]
[1724306552342,2.4954,2623.5,2623.4,7.62368]
[1724306552553,2.4954,2623.5,2623.4,10.62368]
[1724306559392,2.54415685,2623.5,2623.4,10.62368]
[1724306562209,2.54415685,2623.5,2623.4,14.43552]
[1724306567943,2.54415685,2623.5,2623.4,10.62368]
[1724306581740,2.54415685,2623.5,2623.4,14.43552]
[1724306584322,2.54415685,2623.5,2623.4,14.91247739]
[1724306584522,2.54415685,2623.5,2623.4,14.43552]
[1724306584687,2.54415685,2623.5,2623.4,14.91247735]
[1724306585343,2.54415685,2623.5,2623.4,14.43552]
[1724306585693,2.54415685,2623.5,2623.4,14.91244705]
[1724306589208,2.54415685,2623.5,2623.4,15.27015767]
[1724306589401,2.54415685,2623.5,2623.4,15.27015782]
[1724306590634,2.54415685,2623.5,2623.4,16.23755778]
[1724306590950,2.54415685,2623.5,2623.4,16.59526899]
[1724306591173,2.54415685,2623.5,2623.4,15.76063073]
[1724306591441,2.54415685,2623.5,2623.4,16.59529373]
[1724306591731,2.54415685,2623.5,2623.4,18.58291696]
[1724306592101,2.4954,2623.5,2623.4,18.58291696]
[1724306592521,2.4954,2623.5,2623.4,16.59529373]
[1724306592696,2.4954,2623.5,2623.4,18.58293097]
[1724306593397,2.4954,2623.5,2623.4,18.2252088]
[1724306593633,2.4954,2623.5,2623.4,18.58291792]
[1724306593927,2.4954,2623.5,2623.4,17.35839088]
[1724306594141,2.4954,2623.5,2623.4,19.34604592]
[1724306594296,2.4954,2623.5,2623.4,17.35838646]
[1724306594632,2.4954,2623.5,2623.4,18.22524712]
[1724306594891,2.4954,2623.5,2623.4,18.98837597]
[1724306595001,2.4954,2623.5,2623.4,19.34609262]
[1724306596424,2.4954,2623.5,2623.4,20.1463767]
[1724306596600,2.4954,2623.5,2623.4,20.71872334]
[1724306597631,2.4954,2623.5,2623.4,24.24704636]
[1724306597835,2.4954,2623.5,2623.4,25.95878316]
[1724306598034,2.4954,2623.5,2623.4,28.53224439]
[1724306598229,2.4954,2623.5,2623.4,26.93038246]
[1724306598849,2.4954,2623.5,2623.4,26.92998017]
[1724306599609,2.4954,2623.5,2623.4,28.12971759]
[1724306599919,2.4749,2624.3,2624.2,7.62136]
[1724306600145,2.52429964,2624.3,2624.2,12.40731553]
[1724306600529,2.52429964,2624.3,2624.2,13.17044438]
[1724306600851,2.52429964,2624.3,2624.2,11.93036]
[1724306601199,2.52429964,2624.3,2624.2,12.40720205]
[1724306601402,0.04939964,2624.3,2624.2,20.25172]
[1724306601691,0.04939964,2624.3,2624.2,22.33686597]
[1724306601842,2.476,2624.4,2624.3,7.62106]
[1724306602030,2.476,2624.4,2624.3,18.57773904]
[1724306602446,2.476,2624.4,2624.3,16.59072382]
[1724306602634,2.476,2624.4,2624.3,18.57761421]
[1724306603134,2.476,2624.4,2624.3,15.26604701]
[1724306603349,2.476,2624.4,2624.3,11.09790178]
[1724306603977,2.476,2624.4,2624.3,11.45548474]
[1724306604133,2.476,2624.4,2624.3,15.26601474]
[1724306604434,2.476,2624.4,2624.3,16.11372206]
[1724306604638,2.476,2624.4,2624.3,16.59049416]
[1724306605134,2.476,2624.4,2624.3,15.26594118]
[1724306606340,2.476,2624.4,2624.3,14.9083621]
[1724306607416,2.476,2624.4,2624.3,15.4583621]
[1724306607881,2.476,2624.4,2624.3,15.45834211]
[1724306611055,2.476,2624.4,2624.3,14.98159]
[1724306611267,2.476,2624.4,2624.3,15.45833577]
[1724306612549,2.476,2624.4,2624.3,14.98159]
[1724306613186,2.476,2624.4,2624.3,15.45833827]
[1724306616575,2.476,2624.4,2624.3,14.98159]
[1724306619856,2.476,2624.4,2624.3,15.45834034]
[1724306620272,2.476,2624.4,2624.3,14.98159]
[1724306628803,2.476,2624.4,2624.3,16.29059]
[1724306630700,2.476,2624.4,2624.3,15.74059]
[1724306631332,2.476,2624.4,2624.3,11.93006]
[1724306632040,2.47515756,2624.4,2624.3,11.93006]
[1724306632859,2.47515756,2624.4,2624.3,16.24952837]
[1724306633835,2.47515756,2624.4,2624.3,15.74059]
[1724306638240,2.47515756,2624.4,2624.3,20.10112]
[1724306638443,2.47515756,2624.4,2624.3,23.41240154]
[1724306639239,2.47515756,2624.4,2624.3,24.21154169]
[1724306639564,2.3324,2625.2,2625.1,3.80937]
[1724306639793,2.3324,2625.2,2625.1,8.92774]
[1724306639928,2.37727347,2625.2,2625.1,8.92774]
[1724306641278,2.37727347,2625.2,2625.1,7.61874]
[1724306641449,2.37727347,2625.2,2625.1,8.92774]
[1724306642584,2.37727347,2625.2,2625.1,11.92774]
[1724306642786,2.37727347,2625.2,2625.1,15.73711]
[1724306645210,2.37727347,2625.2,2625.1,17.06135299]
[1724306645369,2.3324,2625.2,2625.1,17.06132828]
[1724306645880,2.3324,2625.2,2625.1,19.04760633]
[1724306646402,2.3324,2625.2,2625.1,17.06132828]
[1724306646708,2.3324,2625.2,2625.1,19.04764501]
[1724306646880,2.3324,2625.2,2625.1,17.06132828]
[1724306647062,2.3324,2625.2,2625.1,19.04763122]
[1724306647978,2.3324,2625.2,2625.1,17.06132828]
[1724306648198,2.3324,2625.2,2625.1,19.04757845]
[1724306648396,2.3324,2625.2,2625.1,17.06132828]
[1724306649486,2.3324,2625.2,2625.1,17.06130843]
[1724306650166,2.3324,2625.2,2625.1,15.73711]
[1724306654433,2.3324,2625.2,2625.1,19.54648]
[1724306654637,2.3324,2625.2,2625.1,22.85687887]
[1724306655339,14.3133647,2626.3,2626.2,7.61556]
[1724306655652,14.3133647,2626.3,2626.2,8.92456]
[1724306655805,16.6950647,2626.3,2626.2,8.92456]
[1724306658411,16.6950647,2626.3,2626.2,11.92456]
[1724306661322,16.6950647,2626.3,2626.2,15.73234]
[1724306663292,14.3133647,2626.3,2626.2,15.73234]
[1724306663424,2.1136647,2626.3,2626.2,24.73263272]
[1724306663625,2.1136647,2626.3,2626.2,29.04207409]
[1724306663868,2.1136647,2626.3,2626.2,24.09012]
[1724306664270,2.15433651,2626.3,2626.2,24.09012]
[1724306664463,2.15433651,2626.3,2626.2,24.47212]
[1724306665372,0.25051651,2626.3,2626.2,28.2799]
[1724306665692,8.29e-06,2626.3,2626.2,28.2799]
[1724306665962,3.52230728,2626.4,2626.3,15.61252]
[1724306666129,1.61855728,2626.4,2626.3,19.16252]
[1724306666572,1.61855728,2626.4,2626.3,23.16252]
[1724306668063,1.61855728,2626.4,2626.3,15.35489]
[1724306668365,1.61855728,2626.4,2626.3,19.16252]
[1724306669789,1.61855728,2626.4,2626.3,15.35489]
[1724306671733,1.61855728,2626.4,2626.3,19.16252]
[1724306673507,1.65497605,2626.4,2626.3,23.16252]
[1724306674208,1.65497605,2626.4,2626.3,26.97015]
[1724306674209,6.05e-06,2626.4,2626.3,26.97015]
[1724306674553,7.8284,2626.7,2626.6,15.9288]
[1724306674721,3.64647,2626.7,2626.6,20.2378]
[1724306674923,5.55,2627.7,2626.8,15.22764]
[1724306674924,15.1236,2626.9,2626.8,15.22764]
[1724306675127,15.1236,2626.9,2626.8,23.34355]
[1724306675434,13.71242191,2626.9,2626.8,18.97073]
[1724306675609,16.11992191,2626.9,2626.8,15.92282]
[1724306676067,16.15330138,2626.9,2626.8,15.92282]
[1724306676621,16.15330138,2626.9,2626.8,11.92282]
[1724306677326,16.15330138,2626.9,2626.8,15.72973]
[1724306678317,16.15330138,2626.9,2626.8,16.27973]
[1724306678519,16.15330138,2626.9,2626.8,18.09773]
[1724306680523,16.15330138,2626.9,2626.8,21.90464]
[1724306681061,16.15330138,2626.9,2626.8,18.09773]
[1724306681261,16.15330138,2626.9,2626.8,22.09773]
[1724306682749,16.15330138,2626.9,2626.8,18.09773]
[1724306683124,16.15330138,2626.9,2626.8,18.47973]
[1724306683523,16.11992191,2626.9,2626.8,18.47973]
[1724306683959,16.11992191,2626.9,2626.8,22.28664]
[1724306684340,16.11992191,2626.9,2626.8,18.47973]
[1724306684661,16.11992191,2626.9,2626.8,22.47973]
[1724306684987,4.22885795,2626.9,2626.8,30.57427448]
[1724306685263,3.27891219,2626.9,2626.8,30.57427448]
[1724306685465,3.27891219,2626.9,2626.8,27.43623896]
[1724306685777,5.53881219,2626.9,2626.8,22.6724007]
[1724306685987,5.53881219,2626.9,2626.8,22.47973]
[1724306686624,5.53881219,2626.9,2626.8,26.28664]
[1724306687028,5.53881219,2626.9,2626.8,22.47973]
[1724306687244,5.53881219,2626.9,2626.8,26.28664]
[1724306687484,2.19e-06,2626.9,2626.8,26.28664]
[1724306688582,2.19e-06,2626.9,2626.8,22.47973]
[1724306688930,2.19e-06,2626.9,2626.8,15.80273]
[1724306689127,2.19e-06,2626.9,2626.8,18.92973]
[1724306689527,2.19e-06,2626.9,2626.8,14.92973]
[1724306689728,2.19e-06,2626.9,2626.8,18.73664]
[1724306689932,2.19e-06,2626.9,2626.8,14.92973]
[1724306690329,2.19e-06,2626.9,2626.8,17.92973]
[1724306690524,2.19e-06,2626.9,2626.8,21.73664]
[1724306690742,2.19e-06,2626.9,2626.8,22.28664]
[1724306690965,2.19e-06,2626.9,2626.8,26.28664]
[1724306691483,2.19e-06,2626.9,2626.8,26.76285769]
[1724306691826,2.19e-06,2626.9,2626.8,26.76285581]
[1724306692353,2.19e-06,2626.9,2626.8,22.47973]
[1724306692755,2.19e-06,2626.9,2626.8,26.28664]
[1724306693589,2.19e-06,2626.9,2626.8,26.76287163]
[1724306694086,2.19e-06,2626.9,2626.8,26.28664]
[1724306694291,2.19e-06,2626.9,2626.8,26.76286731]
[1724306695072,2.19e-06,2626.9,2626.8,26.76288395]
[1724306695247,1.46601393,2627.0,2626.9,12.50228]
[1724306695452,1.46601393,2627.0,2626.9,19.85904]
[1724306695648,1.46601393,2627.0,2626.9,16.05228]
[1724306697445,3.93e-06,2627.0,2626.9,23.85904]
[1724306697675,3.93e-06,2627.0,2626.9,29.46958951]
[1724306697881,3.93e-06,2627.0,2626.9,35.8267918]
[1724306698483,3.93e-06,2627.0,2626.9,35.82693498]
[1724306698702,3.93e-06,2627.0,2626.9,57.04443798]
[1724306698847,16.49049393,2627.2,2627.1,15.60788]
[1724306699046,14.58732393,2627.2,2627.1,26.28488]
[1724306699345,12.68415393,2627.2,2627.1,27.60783578]
[1724306699812,8.87781393,2627.2,2627.1,31.41430578]
[1724306699966,8.87781393,2627.2,2627.1,33.75567848]
[1724306700147,5.07147393,2627.2,2627.1,33.75567848]
[1724306700349,3.16830393,2627.2,2627.1,35.12405619]
[1724306700586,3.16830393,2627.2,2627.1,42.2655916]
[1724306700794,4.33e-06,2627.3,2627.2,20.11365]
[1724306700950,4.33e-06,2627.3,2627.2,31.76523038]
[1724306701149,4.33e-06,2627.3,2627.2,30.97078335]
[1724306701372,4.33e-06,2627.3,2627.2,35.7402207]
[1724306701885,4.33e-06,2627.3,2627.2,31.89863474]
[1724306702190,18.32189503,2627.5,2627.4,15.60616]
[1724306702491,9.81491965,2627.5,2627.4,26.84209371]
[1724306702651,9.81491965,2627.5,2627.4,26.57948147]
[1724306702983,12.24691965,2627.5,2627.4,18.65809958]
[1724306703185,12.24691965,2627.5,2627.4,15.35096623]
[1724306703386,12.24691965,2627.5,2627.4,14.99408]
[1724306703690,12.24691965,2627.5,2627.4,11.99408]
[1724306704061,12.24691965,2627.5,2627.4,15.80012]
[1724306704675,12.24691965,2627.5,2627.4,7.99408]
[1724306705064,12.24691965,2627.5,2627.4,10.99408]
[1724306706389,12.24691965,2627.5,2627.4,12.8670046]
[1724306706592,12.24691965,2627.5,2627.4,19.01430855]
[1724306707088,9.81491965,2627.5,2627.4,19.80865844]
[1724306707287,9.81491965,2627.5,2627.4,20.7814132]
[1724306707487,9.81491965,2627.5,2627.4,19.58543072]
[1724306707730,12.18141965,2627.5,2627.4,19.45258368]
[1724306707890,12.18141965,2627.5,2627.4,23.80938951]
[1724306708091,9.81491965,2627.5,2627.4,27.42655497]
[1724306708391,7.91196965,2627.5,2627.4,34.24006599]